[Event "28th Hit Open-A 2024"]
[Site "Nova Gorica"]
[Date "2024.01.26"]
[Round "1.1"]
[White "Berkes, Ferenc"]
[Black "Bodrogi, Bendeguz"]
[Result "1-0"]
[ECO "D31"]
[WhiteElo "2613"]
[BlackElo "2261"]
[Annotator "TA"]
[PlyCount "73"]
[EventDate "2024.01.22"]
[EventType "swiss"]
[EventCountry "SLO"]
[SourceTitle "playchess.com"]
[Source "ChessBase"]
[SourceQuality "1"]
[TimeControl "5400+30"]

{[%evp 9,73,21,34,29,31,15,24,36,18,12,19,15,22,18,25,10,25,4,19,23,59,58,54,48,43,47,52,45,57,60,56,60,60,30,61,57,86,89,146,132,109,121,118,133,148,136,170,167,178,172,171,171,226,225,229,235,343,347,368,342,363,365,361,370,370,370]} 1. d4 {[%emt 0:00:04]} d5 {[%emt 0:00:12]} 2. c4 {[%emt 0:00:10]} e6 {[%emt 0:00:28]} 3. Nc3 {[%emt 0:01:01]} a6 {[%emt 0:00:34]} 4. cxd5 {[%emt 0:00:29]} exd5 {[%emt 0:00:13]} 5. Nf3 {[%emt 0:00:13]} h6 {[%emt 0:00:39]} 6. Bf4 {[%emt 0:00:52]} Nf6 {[%emt 0:00:10]} 7. e3 {[%emt 0:00:08]} Bd6 {[%emt 0:00:08]} 8. Be5 {[%emt 0:00:24] White has an edge.} c6 {[%emt 0:00:58][%cal Bc7c6,Bc6c5][%mdl 32]} 9. Bd3 {[%emt 0:01:29]} O-O {[%emt 0:00:12]} 10. h3 {[%emt 0:02:13]} Re8 {[%emt 0:02:44]} 11. O-O {[%emt 0:00:37]} Bxe5 {[%emt 0:01:31]} 12. Nxe5 {[%emt 0:00:11]} c5 {[%emt 0:00:07]} 13. a4 {[%emt 0:04:38]} Qd6 {[%emt 0:06:19]} 14. a5 {[%emt 0:02:04]} Nc6 {[%emt 0:05:00]} 15. Nxc6 {[%emt 0:00:18]} bxc6 {[%emt 0:01:14][%cal Bb7c6,Bc6c5,Bc5c4][%mdl 32]} 16. dxc5 {[%emt 0:09:38]} Qxc5 {[%emt 0:00:13]} 17. Qd2 {[%emt 0:00:12]} Qb4 {[%emt 0:19:13] Against Na4} 18. Rfd1 {[%emt 0:09:57]} c5 {[%emt 0:10:53]} 19. Na4 {[%emt 0:04:06]} Qxd2 {[%emt 0:01:47]} 20. Rxd2 {[%emt 0:00:03]} c4 {[%emt 0:01:00]} 21. Bc2 {[%emt 0:00:06]} Rb8 {[%emt 0:09:11]} 22. Nb6 {[%emt 0:00:10][%cal Ob2b3]} Re5 {[%emt 0:04:08]} 23. Rad1 {[%emt 0:09:11][%cal Oe3e4] e4! is the strong threat.} g5 {[%emt 0:04:48] [#]} ({Black should play} 23... Bb7) 24. e4 $1 $16 {[%emt 0:02:02][%mdl 512] White is more active.} d4 {[%emt 0:19:21]} 25. Nxc4 {[%emt 0:10:21]} Rc5 {[%emt 0:00:19]} 26. Rxd4 {[%emt 0:00:07][%cal Bd2d4,Bd4c4,Bc4c6][%mdl 32] Threatens to win with Rd8+.} Be6 {[%emt 0:00:20] [#]} 27. b3 {[%emt 0:04:41]} (27. Rd8+ Rxd8 28. Rxd8+ Kg7 $16) 27... Bxc4 {[%emt 0:00:54]} 28. Rxc4 {[%emt 0:00:08]} (28. bxc4 Rxa5 29. Rd8+ Rxd8 30. Rxd8+ Kg7 $11) 28... Rxa5 {[%emt 0:08:40]} 29. Rd6 {[%emt 0:02:22]} Kg7 {[%emt 0:00:07]} 30. Rcc6 {[%emt 0:00:10][%csl LRa6,LRf6]} Ra1+ {[%emt 0:00:39]} (30... Ne8 $142) 31. Kh2 $18 {[%emt 0:00:08]} Ne8 {[%emt 0:00:06]} 32. Rxh6 {[%emt 0:06:32]} Rc1 {[%emt 0:02:14]} (32... Nc7 $142 33. e5 Ne6 34. Rh7+ Kg8) 33. Rh5 {[%emt 0:00:17]} f6 {[%emt 0:00:56]} 34. e5 {[%emt 0:00:52] aiming for exf6+.} Rxc2 {[%emt 0:00:17]} 35. Rxc2 {[%emt 0:00:36] White is winning.} Kg6 {[%emt 0:00:04]} 36. Rh8 {[%emt 0:01:06]} Kg7 {[%emt 0:00:03] [#]} 37. Rxe8 $1 {[%emt 0:00:11] Weighted Error Value: White=0.04 (flawless) /Black=0.13 (very precise) .  Mistake:       	---       	Black=3      Inaccurate:     	White=1     	Black=3      OK:         	White=14    	Black=15     Best:        	White=2     	Black=4      Brilliant:      	White=2     	---} 1-0

[Event "28th Hit Open-A 2024"]
[Site "Nova Gorica"]
[Date "2024.01.26"]
[Round "1.2"]
[White "Herega, Nejc"]
[Black "Sebenik, Matej"]
[Result "1/2-1/2"]
[ECO "E06"]
[WhiteElo "2257"]
[BlackElo "2536"]
[Annotator "RC"]
[PlyCount "80"]
[EventDate "2024.01.22"]
[EventType "swiss"]
[EventCountry "SLO"]
[SourceTitle "playchess.com"]
[Source "ChessBase"]
[SourceQuality "1"]
[TimeControl "5400+30"]

1. d4 {[%emt 0:00:05]} d5 {[%emt 0:00:16]} 2. c4 {[%emt 0:01:49]} e6 {[%emt 0:00:26]} 3. Nf3 {[%emt 0:00:58]} Nf6 {[%emt 0:00:15]} 4. g3 {[%emt 0:02:22]} Be7 {[%emt 0:04:50]} 5. Bg2 {[%emt 0:00:35]} O-O {[%emt 0:00:08]} 6. O-O {[%emt 0:00:39]} a5 {[%emt 0:02:13]} 7. Qc2 {[%emt 0:03:10]} Nc6 {[%emt 0:00:23]} 8. a3 {[%emt 0:02:56]} dxc4 {[%emt 0:00:43]} 9. Qxc4 {[%emt 0:02:46]} a4 {[%emt 0:02:01]} 10. Nc3 {[%emt 0:03:14]} Bd7 {[%emt 0:00:12]} 11. Ne5 {[%emt 0:07:04]} Na5 {[%emt 0:09:31]} 12. Qd3 {[%emt 0:01:47]} Be8 {[%emt 0:03:18]} 13. Bf4 {[%emt 0:05:03]} Nd5 {[%emt 0:02:16]} 14. e4 {[%emt 0:06:03]} Nxf4 {[%emt 0:21:12]} 15. gxf4 {[%emt 0:00:27]} Bd6 {[%emt 0:00:03]} 16. Rad1 {[%emt 0:04:32]} Ra6 {[%emt 0:17:33]} 17. Qg3 {[%emt 0:06:34]} Rb6 {[%emt 0:00:53]} 18. Nd3 {[%emt 0:16:18]} Rb3 {[%emt 0:12:57]} 19. d5 {[%emt 0:08:22]} exd5 {[%emt 0:01:02]} 20. e5 {[%emt 0:02:06]} Be7 {[%emt 0:07:15]} 21. f5 {[%emt 0:03:10]} Kh8 {[%emt 0:00:48]} 22. Nc1 {[%emt 0:02:50]} Rxc3 {[%emt 0:00:08]} 23. Qxc3 {[%emt 0:00:25]} c6 {[%emt 0:00:07]} 24. Nd3 {[%emt 0:02:36]} Nc4 {[%emt 0:02:08]} 25. Rfe1 {[%emt 0:02:32]} b5 {[%emt 0:00:22]} 26. Nf4 {[%emt 0:01:38]} Qb8 {[%emt 0:04:45]} 27. Nh5 {[%emt 0:06:14]} Rg8 {[%emt 0:03:47]} 28. Nxg7 {[%emt 0:03:25]} Rxg7 {[%emt 0:02:00]} 29. f6 {[%emt 0:00:08]} Rxg2+ {[%emt 0:02:37]} 30. Kxg2 {[%emt 0:00:18]} Bf8 {[%emt 0:00:02]} 31. Qg3 {[%emt 0:02:07]} Bd7 {[%emt 0:00:09]} 32. Kh1 {[%emt 0:00:52]} Bf5 {[%emt 0:00:06]} 33. f3 {[%emt 0:00:49]} Bg6 {[%emt 0:01:10]} 34. Re2 {[%emt 0:00:49]} Qc8 {[%emt 0:00:44]} 35. e6 {[%emt 0:02:12]} fxe6 {[%emt 0:00:13]} 36. Qh3 {[%emt 0:00:36]} Bf5 {[%emt 0:01:10]} 37. Qh5 {[%emt 0:00:18]} Bg6 {[%emt 0:00:30]} 38. Qh3 {[%emt 0:00:17]} Bf5 {[%emt 0:00:37]} 39. Qh5 {[%emt 0:00:43]} Bg6 {[%emt 0:00:24]} 40. Qh3 {[%emt 0:00:20]} Bf5 {[%emt 0:00:35]} 1/2-1/2

[Event "28th Hit Open-A 2024"]
[Site "Nova Gorica"]
[Date "2024.01.26"]
[Round "1.3"]
[White "Basso, Pier Luigi"]
[Black "Djuric, Stefan"]
[Result "1-0"]
[ECO "A65"]
[WhiteElo "2482"]
[BlackElo "2220"]
[Annotator "RC"]
[PlyCount "59"]
[EventDate "2024.01.22"]
[EventType "swiss"]
[EventCountry "SLO"]
[SourceTitle "playchess.com"]
[Source "ChessBase"]
[SourceQuality "1"]
[TimeControl "5400+30"]

1. d4 {[%emt 0:00:03]} Nf6 {[%emt 0:03:11]} 2. c4 {[%emt 0:00:08]} g6 {[%emt 0:00:04]} 3. Nc3 {[%emt 0:00:13]} Bg7 {[%emt 0:00:25]} 4. e4 {[%emt 0:00:06]} O-O {[%emt 0:00:02]} 5. f3 {[%emt 0:00:19]} d6 {[%emt 0:01:28]} 6. Nge2 {[%emt 0:01:42]} c5 {[%emt 0:01:52]} 7. d5 {[%emt 0:01:03]} e6 {[%emt 0:01:17]} 8. Ng3 {[%emt 0:00:07]} exd5 {[%emt 0:00:38]} 9. cxd5 {[%emt 0:00:06]} a6 {[%emt 0:00:21]} 10. a4 {[%emt 0:00:07]} Nbd7 {[%emt 0:00:11]} 11. Be2 {[%emt 0:00:23]} Rb8 {[%emt 0:00:50]} 12. O-O {[%emt 0:04:19]} Ne8 {[%emt 0:01:17]} 13. f4 {[%emt 0:05:43]} c4 {[%emt 0:06:45]} 14. Bxc4 {[%emt 0:04:48]} b5 {[%emt 0:00:02]} 15. axb5 {[%emt 0:00:09]} axb5 {[%emt 0:00:01]} 16. Be2 {[%emt 0:02:18]} b4 {[%emt 0:02:09]} 17. Na4 {[%emt 0:00:19]} Nef6 {[%emt 0:03:50]} 18. Bf3 {[%emt 0:06:10]} Ba6 {[%emt 0:00:35]} 19. Re1 {[%emt 0:00:10]} Re8 {[%emt 0:00:44]} 20. Be3 {[%emt 0:01:20]} h5 {[%emt 0:01:05]} 21. Bd4 {[%emt 0:03:33]} h4 {[%emt 0:27:49]} 22. Nh1 {[%emt 0:00:16]} Bb5 {[%emt 0:14:32]} 23. e5 {[%emt 0:03:20]} dxe5 {[%emt 0:10:41]} 24. fxe5 {[%emt 0:00:07]} Nh7 {[%emt 0:00:05]} 25. e6 {[%emt 0:01:10]} Ndf6 {[%emt 0:04:57]} 26. Nc5 {[%emt 0:02:44]} Ng5 {[%emt 0:01:11]} 27. exf7+ {[%emt 0:00:43]} Kxf7 {[%emt 0:00:15]} 28. Ne6 {[%emt 0:03:59]} Nxf3+ {[%emt 0:02:42]} 29. Qxf3 {[%emt 0:00:16]} Qxd5 {[%emt 0:00:03]} 30. Ra7+ {[%emt 0:00:33]} 1-0

[Event "28th Hit Open-A 2024"]
[Site "Nova Gorica"]
[Date "2024.01.26"]
[Round "1.4"]
[White "Skrbec, Leon"]
[Black "Csonka, Balazs"]
[Result "0-1"]
[ECO "E15"]
[WhiteElo "2218"]
[BlackElo "2479"]
[Annotator "RC"]
[PlyCount "106"]
[EventDate "2024.01.22"]
[EventType "swiss"]
[EventCountry "SLO"]
[SourceTitle "playchess.com"]
[Source "ChessBase"]
[SourceQuality "1"]
[TimeControl "5400+30"]

1. d4 {[%emt 0:00:17]} Nf6 {[%emt 0:00:25]} 2. Nf3 {[%emt 0:00:28]} e6 {[%emt 0:02:40]} 3. c4 {[%emt 0:00:06]} b6 {[%emt 0:01:39]} 4. g3 {[%emt 0:02:03]} Ba6 {[%emt 0:00:38]} 5. b3 {[%emt 0:01:18]} Bb4+ {[%emt 0:00:41]} 6. Bd2 {[%emt 0:00:07]} Be7 {[%emt 0:00:07]} 7. Bg2 {[%emt 0:00:10]} d5 {[%emt 0:00:59]} 8. cxd5 {[%emt 0:01:14]} exd5 {[%emt 0:00:08]} 9. O-O {[%emt 0:00:07]} O-O {[%emt 0:00:05]} 10. Nc3 {[%emt 0:04:35]} Re8 {[%emt 0:00:08]} 11. Re1 {[%emt 0:02:42]} h6 {[%emt 0:09:58]} 12. Qc2 {[%emt 0:00:38]} Bb7 {[%emt 0:19:16]} 13. Bf4 {[%emt 0:05:36]} c5 {[%emt 0:02:56]} 14. Rad1 {[%emt 0:01:26]} Nc6 {[%emt 0:03:53]} 15. Be5 {[%emt 0:18:32]} cxd4 {[%emt 0:06:40]} 16. Bxd4 {[%emt 0:01:58]} Nxd4 {[%emt 0:01:48]} 17. Nxd4 {[%emt 0:21:07]} Bb4 {[%emt 0:01:38]} 18. Qb2 {[%emt 0:02:04]} Rc8 {[%emt 0:08:50]} 19. Ndb5 {[%emt 0:01:17]} Qe7 {[%emt 0:11:03]} 20. a3 {[%emt 0:01:17]} Bc5 {[%emt 0:06:29]} 21. e3 {[%emt 0:10:06]} d4 {[%emt 0:00:19]} 22. exd4 {[%emt 0:13:20]} Qxe1+ {[%emt 0:00:07]} 23. Rxe1 {[%emt 0:00:03]} Rxe1+ {[%emt 0:00:07]} 24. Bf1 {[%emt 0:00:02]} Bf8 {[%emt 0:01:09]} 25. Qd2 {[%emt 0:00:04]} Rce8 {[%emt 0:02:30]} 26. d5 {[%emt 0:01:03]} Ra1 {[%emt 0:01:55]} 27. Kg2 {[%emt 0:00:20]} Ree1 {[%emt 0:00:56]} 28. Bc4 {[%emt 0:02:50]} Rg1+ {[%emt 0:08:17]} 29. Kf3 {[%emt 0:00:05]} a6 {[%emt 0:00:03]} 30. Nd4 {[%emt 0:00:55]} b5 {[%emt 0:00:22]} 31. Nc2 {[%emt 0:01:48]} bxc4 {[%emt 0:03:39]} 32. bxc4 {[%emt 0:01:06]} Rac1 {[%emt 0:01:29]} 33. Ne3 {[%emt 0:00:09]} Bc5 {[%emt 0:02:28]} 34. Ned1 {[%emt 0:00:24]} Rgxd1 {[%emt 0:00:31]} 35. Nxd1 {[%emt 0:00:12]} Rxc4 {[%emt 0:00:05]} 36. Ne3 {[%emt 0:01:25]} Bxe3 {[%emt 0:00:41]} 37. Kxe3 {[%emt 0:00:17]} Re4+ {[%emt 0:00:58]} 38. Kd3 {[%emt 0:00:07]} Bxd5 {[%emt 0:00:12]} 39. Qa5 {[%emt 0:00:06]} Bc4+ {[%emt 0:00:40]} 40. Kc2 {[%emt 0:01:07]} Bb5 {[%emt 0:01:22]} 41. f3 {[%emt 0:00:25]} Re2+ {[%emt 0:01:33]} 42. Kb3 {[%emt 0:00:12]} Rxh2 {[%emt 0:00:28]} 43. a4 {[%emt 0:00:14]} Be2 {[%emt 0:00:25]} 44. Qf5 {[%emt 0:01:01]} Rf2 {[%emt 0:00:48]} 45. f4 {[%emt 0:00:28]} Rf3+ {[%emt 0:00:31]} 46. Kb4 {[%emt 0:00:11]} Rxg3 {[%emt 0:00:50]} 47. Qc8+ {[%emt 0:01:17]} Kh7 {[%emt 0:00:01]} 48. Qf5+ {[%emt 0:00:13]} Kg8 {[%emt 0:00:10]} 49. Qc8+ {[%emt 0:00:10]} Kh7 {[%emt 0:00:02]} 50. Qf5+ {[%emt 0:00:12]} Rg6 {[%emt 0:00:06]} 51. Ka5 {[%emt 0:00:15]} Bg4 {[%emt 0:01:24]} 52. Qd3 {[%emt 0:00:24]} Nh5 {[%emt 0:01:04]} 53. f5 {[%emt 0:00:44]} Rf6 {[%emt 0:00:10]} 0-1

[Event "28th Hit Open-A 2024"]
[Site "Nova Gorica"]
[Date "2024.01.26"]
[Round "1.5"]
[White "Beliavsky, Alexander G"]
[Black "Gregoric, Andraz"]
[Result "1-0"]
[ECO "E16"]
[WhiteElo "2475"]
[BlackElo "2217"]
[Annotator "RC"]
[PlyCount "91"]
[EventDate "2024.01.22"]
[EventType "swiss"]
[EventCountry "SLO"]
[SourceTitle "playchess.com"]
[Source "ChessBase"]
[SourceQuality "1"]
[TimeControl "5400+30"]

1. d4 {[%emt 0:00:04]} Nf6 {[%emt 0:00:07]} 2. c4 {[%emt 0:00:07]} e6 {[%emt 0:00:16]} 3. Nf3 {[%emt 0:00:21]} Bb4+ {[%emt 0:00:11]} 4. Bd2 {[%emt 0:04:48]} a5 {[%emt 0:00:18]} 5. g3 {[%emt 0:03:25]} b6 {[%emt 0:01:06]} 6. Bg2 {[%emt 0:00:19]} Bb7 {[%emt 0:00:04]} 7. O-O {[%emt 0:00:48]} O-O {[%emt 0:00:44]} 8. Bf4 {[%emt 0:04:58]} Be7 {[%emt 0:01:20]} 9. Nc3 {[%emt 0:00:27]} Ne4 {[%emt 0:02:42]} 10. Rc1 {[%emt 0:05:03]} d6 {[%emt 0:03:36]} 11. Qd3 {[%emt 0:03:04]} Nxc3 {[%emt 0:00:37]} 12. Rxc3 {[%emt 0:00:09]} Nd7 {[%emt 0:02:22]} 13. e4 {[%emt 0:01:44]} c5 {[%emt 0:06:35]} 14. d5 {[%emt 0:01:40]} exd5 {[%emt 0:16:15]} 15. exd5 {[%emt 0:00:08]} Nf6 {[%emt 0:01:34]} 16. a4 {[%emt 0:12:43]} Bc8 {[%emt 0:11:57]} 17. h3 {[%emt 0:00:48]} Nh5 {[%emt 0:00:56]} 18. Bc1 {[%emt 0:02:51]} f5 {[%emt 0:04:52]} 19. Rc2 {[%emt 0:06:03]} Bf6 {[%emt 0:04:06]} 20. Re2 {[%emt 0:01:00]} Re8 {[%emt 0:03:30]} 21. Ng5 {[%emt 0:04:57]} Rxe2 {[%emt 0:06:49]} 22. Qxe2 {[%emt 0:00:09]} g6 {[%emt 0:00:53]} 23. Ne6 {[%emt 0:01:23]} Qe7 {[%emt 0:02:25]} 24. Re1 {[%emt 0:03:44]} Bd7 {[%emt 0:08:39]} 25. g4 {[%emt 0:01:24]} Ng7 {[%emt 0:02:44]} 26. g5 {[%emt 0:00:20]} Be5 {[%emt 0:00:38]} 27. f4 {[%emt 0:00:32]} Bxe6 {[%emt 0:04:43]} 28. fxe5 {[%emt 0:00:08]} Bd7 {[%emt 0:00:26]} 29. exd6 {[%emt 0:11:05]} Qxe2 {[%emt 0:00:51]} 30. Rxe2 {[%emt 0:00:05]} Re8 {[%emt 0:01:40]} 31. Re7 {[%emt 0:00:46]} Bxa4 {[%emt 0:00:48]} 32. b3 {[%emt 0:06:09]} Rxe7 {[%emt 0:01:28]} 33. dxe7 {[%emt 0:00:04]} Bd7 {[%emt 0:02:44]} 34. Bf4 {[%emt 0:05:33]} Kf7 {[%emt 0:00:04]} 35. Bc7 {[%emt 0:00:22]} b5 {[%emt 0:01:15]} 36. Bd6 {[%emt 0:01:33]} a4 {[%emt 0:01:44]} 37. bxa4 {[%emt 0:00:08]} bxc4 {[%emt 0:00:30]} 38. a5 {[%emt 0:00:27]} Bb5 {[%emt 0:00:16]} 39. Bxc5 {[%emt 0:00:50]} c3 {[%emt 0:01:29]} 40. Bf1 {[%emt 0:01:25]} Bxf1 {[%emt 0:01:11]} 41. Kxf1 {[%emt 0:00:04]} c2 {[%emt 0:00:04]} 42. Ba3 {[%emt 0:00:05]} Ne8 {[%emt 0:00:43]} 43. a6 {[%emt 0:00:08]} Nc7 {[%emt 0:00:04]} 44. a7 {[%emt 0:00:05]} c1=Q+ {[%emt 0:01:05]} 45. Bxc1 {[%emt 0:00:04]} Kxe7 {[%emt 0:00:03]} 46. d6+ {[%emt 0:00:07]} 1-0

[Event "28th Hit Open-A 2024"]
[Site "Nova Gorica"]
[Date "2024.01.26"]
[Round "1.6"]
[White "Zupancic, Jernej"]
[Black "Doric, Darko"]
[Result "0-1"]
[ECO "D30"]
[WhiteElo "2211"]
[BlackElo "2456"]
[Annotator "RC"]
[PlyCount "74"]
[EventDate "2024.01.22"]
[EventType "swiss"]
[EventCountry "SLO"]
[SourceTitle "playchess.com"]
[Source "ChessBase"]
[SourceQuality "1"]
[TimeControl "5400+30"]

1. d4 {[%emt 0:00:05]} d5 {[%emt 0:00:11]} 2. c4 {[%emt 0:00:08]} e6 {[%emt 0:00:05]} 3. Nf3 {[%emt 0:00:11]} c6 {[%emt 0:00:22]} 4. g3 {[%emt 0:00:24]} dxc4 {[%emt 0:00:20]} 5. Bg2 {[%emt 0:01:10]} b5 {[%emt 0:00:07]} 6. O-O {[%emt 0:03:04]} Bb7 {[%emt 0:00:20]} 7. a4 {[%emt 0:00:40]} Nf6 {[%emt 0:01:37]} 8. Nc3 {[%emt 0:01:38]} a6 {[%emt 0:00:48]} 9. Qc2 {[%emt 0:05:26]} Nbd7 {[%emt 0:00:19]} 10. Rd1 {[%emt 0:03:19]} Be7 {[%emt 0:03:34]} 11. e4 {[%emt 0:10:38]} O-O {[%emt 0:00:49]} 12. Ne5 {[%emt 0:00:23]} Qc7 {[%emt 0:09:06]} 13. Bf4 {[%emt 0:06:54]} Nxe5 {[%emt 0:00:50]} 14. Bxe5 {[%emt 0:00:20]} Qb6 {[%emt 0:01:14]} 15. Rd2 {[%emt 0:26:40]} Rad8 {[%emt 0:05:06]} 16. Rad1 {[%emt 0:01:25]} Ng4 {[%emt 0:16:19]} 17. Bf4 {[%emt 0:01:27]} c5 {[%emt 0:00:35]} 18. d5 {[%emt 0:02:40]} e5 {[%emt 0:00:33]} 19. h3 {[%emt 0:02:32]} exf4 {[%emt 0:00:25]} 20. hxg4 {[%emt 0:00:11]} fxg3 {[%emt 0:03:31]} 21. f4 {[%emt 0:00:33]} b4 {[%emt 0:02:33]} 22. Ne2 {[%emt 0:00:54]} c3 {[%emt 0:00:56]} 23. bxc3 {[%emt 0:00:30]} c4+ {[%emt 0:00:25]} 24. Rd4 {[%emt 0:01:19]} b3 {[%emt 0:00:37]} 25. Qb2 {[%emt 0:00:08]} Bc5 {[%emt 0:00:07]} 26. Nxg3 {[%emt 0:00:10]} a5 {[%emt 0:03:47]} 27. Bf3 {[%emt 0:08:50]} Qc7 {[%emt 0:06:16]} 28. Ne2 {[%emt 0:01:00]} f6 {[%emt 0:02:06]} 29. Kg2 {[%emt 0:00:26]} Bxd4 {[%emt 0:00:04]} 30. Rxd4 {[%emt 0:00:20]} Rfe8 {[%emt 0:00:20]} 31. Qa3 {[%emt 0:00:57]} Qd6 {[%emt 0:01:12]} 32. Qxd6 {[%emt 0:00:41]} Rxd6 {[%emt 0:00:02]} 33. Rd2 {[%emt 0:00:15]} Rb6 {[%emt 0:00:20]} 34. Rb2 {[%emt 0:00:09]} Bc8 {[%emt 0:00:08]} 35. Nd4 {[%emt 0:02:50]} Bd7 {[%emt 0:00:10]} 36. Be2 {[%emt 0:00:47]} Rxe4 {[%emt 0:00:41]} 37. Kf3 {[%emt 0:02:03]} Rxd4 {[%emt 0:00:16]} 0-1

[Event "28th Hit Open-A 2024"]
[Site "Nova Gorica"]
[Date "2024.01.26"]
[Round "1.7"]
[White "Ceres, Dragos"]
[Black "Marchesich, Giovanni"]
[Result "1-0"]
[ECO "B13"]
[WhiteElo "2438"]
[BlackElo "2210"]
[Annotator "RC"]
[PlyCount "95"]
[EventDate "2024.01.22"]
[EventType "swiss"]
[EventCountry "SLO"]
[SourceTitle "playchess.com"]
[Source "ChessBase"]
[SourceQuality "1"]
[TimeControl "5400+30"]

1. e4 {[%emt 0:00:02]} c6 {[%emt 0:00:11]} 2. d4 {[%emt 0:00:06]} d5 {[%emt 0:00:08]} 3. exd5 {[%emt 0:00:05]} cxd5 {[%emt 0:00:08]} 4. Bd3 {[%emt 0:00:02]} Nf6 {[%emt 0:00:43]} 5. h3 {[%emt 0:00:07]} Nc6 {[%emt 0:00:14]} 6. c3 {[%emt 0:00:04]} g6 {[%emt 0:00:59]} 7. Nf3 {[%emt 0:00:06]} Bf5 {[%emt 0:00:48]} 8. O-O {[%emt 0:00:07]} Bxd3 {[%emt 0:04:12]} 9. Qxd3 {[%emt 0:02:47]} Qc7 {[%emt 0:00:13]} 10. Re1 {[%emt 0:00:05]} e6 {[%emt 0:02:05]} 11. Be3 {[%emt 0:02:24]} Bg7 {[%emt 0:03:07]} 12. Nbd2 {[%emt 0:00:07]} O-O {[%emt 0:00:50]} 13. g3 {[%emt 0:00:43]} Nh5 {[%emt 0:12:56]} 14. Nf1 {[%emt 0:03:04]} Rae8 {[%emt 0:02:17]} 15. Re2 {[%emt 0:01:57]} f5 {[%emt 0:06:57]} 16. Bd2 {[%emt 0:00:33]} h6 {[%emt 0:00:46]} 17. Rae1 {[%emt 0:00:28]} Qf7 {[%emt 0:01:06]} 18. b4 {[%emt 0:04:45]} Kh7 {[%emt 0:15:27]} 19. Kg2 {[%emt 0:06:53]} Qg8 {[%emt 0:01:21]} 20. h4 {[%emt 0:02:14]} Nf6 {[%emt 0:12:47]} 21. Bf4 {[%emt 0:07:52]} Ne4 {[%emt 0:00:42]} 22. N1d2 {[%emt 0:02:53]} Bf6 {[%emt 0:03:36]} 23. Rh1 {[%emt 0:02:59]} Qg7 {[%emt 0:00:21]} 24. b5 {[%emt 0:03:32]} Na5 {[%emt 0:00:56]} 25. Qe3 {[%emt 0:01:26]} Rc8 {[%emt 0:00:50]} 26. Nxe4 {[%emt 0:12:37]} fxe4 {[%emt 0:03:57]} 27. Ng5+ {[%emt 0:00:12]} Bxg5 {[%emt 0:00:28]} 28. hxg5 {[%emt 0:00:04]} h5 {[%emt 0:00:06]} 29. f3 {[%emt 0:03:02]} Nc4 {[%emt 0:00:26]} 30. Qf2 {[%emt 0:00:36]} e5 {[%emt 0:01:37]} 31. dxe5 {[%emt 0:00:27]} Nxe5 {[%emt 0:00:03]} 32. fxe4 {[%emt 0:03:30]} Nd3 {[%emt 0:00:07]} 33. Qd4 {[%emt 0:05:15]} Qxd4 {[%emt 0:01:13]} 34. cxd4 {[%emt 0:00:05]} Rxf4 {[%emt 0:00:16]} 35. gxf4 {[%emt 0:00:07]} Nxf4+ {[%emt 0:00:05]} 36. Kf3 {[%emt 0:00:08]} Nxe2 {[%emt 0:00:07]} 37. Kxe2 {[%emt 0:00:02]} dxe4 {[%emt 0:00:16]} 38. Ke3 {[%emt 0:00:24]} Re8 {[%emt 0:00:35]} 39. Rc1 {[%emt 0:01:11]} Re7 {[%emt 0:00:18]} 40. d5 {[%emt 0:01:01]} Kg8 {[%emt 0:00:36]} 41. Kd4 {[%emt 0:03:33]} Kf7 {[%emt 0:04:30]} 42. d6 {[%emt 0:01:42]} Rd7 {[%emt 0:02:07]} 43. Kd5 {[%emt 0:01:27]} e3 {[%emt 0:00:20]} 44. Rc3 {[%emt 0:01:43]} Ke8 {[%emt 0:00:24]} 45. Rxe3+ {[%emt 0:00:58]} Kd8 {[%emt 0:00:01]} 46. Ke6 {[%emt 0:00:39]} Rh7 {[%emt 0:00:17]} 47. Rf3 {[%emt 0:00:54]} Rh8 {[%emt 0:00:06]} 48. d7 {[%emt 0:00:29]} 1-0

[Event "28th Hit Open-A 2024"]
[Site "Nova Gorica"]
[Date "2024.01.26"]
[Round "1.8"]
[White "Garsky, Vladyslav"]
[Black "Cvitan, Ognjen"]
[Result "1/2-1/2"]
[ECO "B52"]
[WhiteElo "2186"]
[BlackElo "2422"]
[Annotator "RC"]
[PlyCount "32"]
[EventDate "2024.01.22"]
[EventType "swiss"]
[EventCountry "SLO"]
[SourceTitle "playchess.com"]
[Source "ChessBase"]
[SourceQuality "1"]
[TimeControl "5400+30"]

1. e4 {[%emt 0:00:06]} c5 {[%emt 0:00:56]} 2. Nf3 {[%emt 0:01:20]} d6 {[%emt 0:02:32]} 3. Bb5+ {[%emt 0:01:04]} Bd7 {[%emt 0:01:50]} 4. Bxd7+ {[%emt 0:00:51]} Qxd7 {[%emt 0:01:20]} 5. c4 {[%emt 0:03:10]} Nf6 {[%emt 0:02:41]} 6. Nc3 {[%emt 0:02:10]} g6 {[%emt 0:02:56]} 7. O-O {[%emt 0:05:55]} Bg7 {[%emt 0:01:25]} 8. d4 {[%emt 0:05:07]} cxd4 {[%emt 0:02:52]} 9. Nxd4 {[%emt 0:00:08]} Nc6 {[%emt 0:02:54]} 10. Nde2 {[%emt 0:22:29]} O-O {[%emt 0:05:50]} 11. f3 {[%emt 0:04:33]} a6 {[%emt 0:08:31]} 12. Be3 {[%emt 0:02:58]} Qc7 {[%emt 0:18:03]} 13. Rc1 {[%emt 0:04:58]} Qa5 {[%emt 0:01:31]} 14. Qd2 {[%emt 0:05:29]} Rfc8 {[%emt 0:05:29]} 15. Rfd1 {[%emt 0:04:54]} Nd7 {[%emt 0:06:26]} 16. b3 {[%emt 0:02:57]} Kf8 {[%emt 0:02:29]} 1/2-1/2